[Event "MCCT Chessable Masters 2022"]
[Site "Online"]
[Date "2022.05.16"]
[Round "13.5"]
[White "Mishra, Abhimanyu"]
[Black "Praggnanandhaa R"]
[Result "0-1"]
[ECO "B40"]
[WhiteElo "2535"]
[BlackElo "2642"]
[Annotator "TA"]
[PlyCount "82"]
[EventDate "2022.05.19"]
[EventType "tourn"]
[EventCountry "NET"]
[SourceTitle "playchess.com"]
[Source "ChessBase"]
[SourceQuality "1"]
[TimeControl "900+10"]

{[%evp 9,82,11,15,16,18,0,0,0,0,0,0,0,0,0,0,0,0,-5,0,0,0,-15,0,-10,32,33,50,32,25,8,29,16,48,50,56,16,50,28,26,0,0,0,0,-16,49,31,27,26,44,55,54,61,87,87,77,44,164,0,144,0,0,0,0,-5273,-5273,-3095,-1778,-29992,-29993,-29993,-29994,-29997,-29994,-29995,-29996]} 1. e4 {[%emt 0:00:00]} c5 {[%emt 0:00:00]} 2. Nf3 {[%emt 0:00:02]} e6 {[%emt 0:00:01]} 3. g3 {[%emt 0:00:01]} Nc6 {[%emt 0:00:01]} 4. Bg2 {[%emt 0:00:01]} Nf6 {[%emt 0:00:01]} 5. Qe2 {[%emt 0:00:05]} e5 {[%emt 0:00:01]} 6. O-O {[%emt 0:00:04] B40: Sicilian: 2...e6, Unusual lines.} Be7 {[%emt 0:00:02]} 7. c3 {[%emt 0:00:07][%cal Od2d4]} O-O {[%emt 0:00:07]} 8. Na3 {[%emt 0:00:03][%cal Bb1a3,Ba3c2,Bc2e3][%mdl 32] The position is equal. The main line 8.Na3 scores better than 8.Rd1.} d6 {[%emt 0:00:01][%cal Bd7d6,Bd6d5,Bd5d4][%mdl 32]} 9. Nc2 {[%emt 0:00:31]} Re8 {[%emt 0:00:20]} 10. d3 {[%emt 0:00:03]} h6 {[%emt 0:01:07]} 11. Ne3 {[%emt 0:00:53]} Be6 {[%emt 0:00:07]} 12. Nh4 {[%emt 0:00:36]} d5 {[%emt 0:00:05]} 13. Nhf5 {[%emt 0:00:44]} (13. Qf3 $5 {[%cal Re4d5]} d4 14. Nd5 $11) 13... d4 {[%emt 0:00:15]} 14. Nd5 {[%emt 0:00:04]} Nxd5 {[%emt 0:00:02]} 15. exd5 {[%emt 0:00:02]} Bxf5 {[%emt 0:00:01]} 16. dxc6 {[%emt 0:00:02] [#]} bxc6 $146 {[%emt 0:00:02]} (16... dxc3 {with more complications.} 17. cxb7 Rb8 18. Rd1 Qd7) ({Predecessor:} 16... dxc3 17. cxb7 Rb8 18. Rd1 Qd7 19. bxc3 Bg4 20. f3 Be6 21. Rb1 Bd6 22. Be3 Rxb7 23. Rxb7 Qxb7 {½-½ (78) Gauri,S (2325)-Liang,J (2410) Charlotte 2021}) 17. Bxc6 {[%emt 0:02:11]} Bd7 {[%emt 0:00:02]} 18. Bxa8 {[%emt 0:03:51]} (18. Bd5 {is more complex.} Rb8 19. Qh5 Rf8 20. Bxh6 Qc8 21. Bg5) 18... Qxa8 {[%emt 0:00:04]} 19. f3 {[%emt 0:00:37]} (19. Re1 {looks sharper.} Qb7 20. cxd4 exd4 21. Qh5) 19... Bd6 {[%emt 0:01:10]} 20. Bd2 {[%emt 0:00:29]} f5 {[%emt 0:01:18]} 21. Rae1 {[%emt 0:00:49]} Qd5 {[%emt 0:00:49]} 22. Qf2 {[%emt 0:01:22]} Bc7 {[%emt 0:05:17]} 23. c4 {[%emt 0:01:59]} Qd6 {[%emt 0:00:23]} 24. Re2 {[%emt 0:00:29]} Bc6 {[%emt 0:00:13]} 25. a3 {[%emt 0:00:38]} a5 {[%emt 0:00:02]} 26. b3 {[%emt 0:00:45]} Ba8 {[%emt 0:03:25]} (26... Rb8 $11 27. Rb1 f4) 27. Qe1 $14 {[%emt 0:00:38]} Qb6 {[%emt 0:00:55]} 28. b4 {[%emt 0:00:56]} axb4 {[%emt 0:00:07]} 29. axb4 {[%emt 0:00:02]} cxb4 {[%emt 0:00:00]} 30. Bxb4 {[%emt 0:00:11]} Bc6 {[%emt 0:01:35]} 31. Ra2 {[%emt 0:01:18]} Qb7 {[%emt 0:00:53]} 32. Ba5 {[%emt 0:00:15]} Ra8 {[%emt 0:01:14] [#]} ({Black should play} 32... Bb8 $14) 33. Qa1 $2 {[%emt 0:00:25]} (33. Ra1 $1 $18) 33... Bd6 {[%emt 0:00:43] [#]} (33... Qa7 $1 $11 {remains equal.} 34. Bxc7 Qxa2 35. Qxa2 Rxa2) 34. f4 {[%emt 0:00:18]} (34. Bd2 $1 $16 {Strongly threatening Rxa8+.} Rxa2 35. Qxa2 Bxf3 36. Rb1) 34... exf4 $11 {[%emt 0:00:11]} 35. Qxd4 {[%emt 0:00:14]} Qe7 {[%emt 0:00:01] And now ...Bc5 would win.} 36. Qf2 {[%emt 0:00:13][%mdl 8192]} ({Don't blunder} 36. gxf4 $2 Bc5 37. Qf2 Qd6 38. Qxc5 Qxc5+ $19) (36. Re1 $11 Qf8 37. Kf1 (37. gxf4 $2 Bc5 $19) 37... fxg3 38. hxg3) 36... Bc5 $19 {[%emt 0:00:14] ( -> ...Rxa5)} 37. d4 {[%emt 0:00:06] [#]} Qe4 $1 {[%emt 0:00:04][%csl Gc6][%cal Re4h1]} 38. Qg2 {[%emt 0:00:12] Inhibits Qh1+.} (38. d5 Bxf2+) 38... Bxd4+ {[%emt 0:00:07] This bishop pair is nice. Black mates.} 39. Kh1 {[%emt 0:00:02]} Rxa5 {[%emt 0:00:04]} 40. Re2 {[%emt 0:00:18]} Qxg2+ {[%emt 0:00:05]} 41. Rxg2 {[%emt 0:00:04]} Ra2 {[%emt 0:00:02] Weighted Error Value: White=0.54/Black=0.18 (very precise)} 0-1

[Event "MCCT Chessable Masters 2022"]
[Site "Online"]
[Date "2022.05.16"]
[Round "13.6"]
[White "Shankland, Sam"]
[Black "Grandelius, Nils"]
[Result "0-1"]
[ECO "D70"]
[WhiteElo "2718"]
[BlackElo "2635"]
[Annotator "TA"]
[PlyCount "62"]
[EventDate "2022.05.19"]
[EventType "tourn"]
[EventCountry "NET"]
[SourceTitle "playchess.com"]
[Source "ChessBase"]
[SourceQuality "1"]
[TimeControl "900+10"]

{[%evp 16,62,37,34,50,37,52,64,95,35,144,142,191,199,200,197,185,176,295,242,211,126,220,221,225,216,217,-83,-76,-189,-176,-167,-168,-162,-177,-162,-168,-179,-155,-155,-182,-249,-236,-287,-272,-361,-361,-434,-418]} 1. d4 {[%emt 0:00:00]} Nf6 {[%emt 0:00:00]} 2. c4 {[%emt 0:00:02]} g6 {[%emt 0:00:04]} 3. f3 {[%emt 0:00:01]} d5 {[%emt 0:00:15]} 4. cxd5 {[%emt 0:00:02]} Nxd5 {[%emt 0:00:00]} 5. e4 {[%emt 0:00:01]} Nb6 {[%emt 0:00:00]} 6. Nc3 {[%emt 0:00:01]} Bg7 {[%emt 0:00:14]} 7. Be3 {[%emt 0:00:02]} O-O {[%emt 0:00:20]} 8. Qd2 {[%emt 0:00:03]} Nc6 {[%emt 0:00:37]} 9. O-O-O {[%emt 0:00:02]} f5 {[%emt 0:00:02] D70: Grünfeld: Unusual White 3rd moves (met by ...d5).} 10. e5 {[%emt 0:00:07]} f4 $5 {[%emt 0:00:35][%mdl 4] Exploring less charted territory.} 11. Bxf4 {[%emt 0:01:20]} Nb4 {[%emt 0:00:38] White is slightly better.} 12. Bh6 {[%emt 0:01:25] [#]} ({White should play} 12. a3 $16 Nc6 13. Nge2) 12... Bxh6 $5 $146 {[%emt 0:03:23][%mdl 8] An interesting novelty.} (12... Be6 $14) ({Predecessor:} 12... Bf5 13. Bxg7 Kxg7 14. g4 Be6 15. Kb1 Qe8 16. a3 Nc6 17. Ne4 Bg8 18. Nc5 Rd8 {1-0 (43) Sjugirov,S (2663)-Puranik,A (2538) Moscow 2019}) 13. Qxh6 $16 {[%emt 0:00:03]} N6d5 {[%emt 0:00:05]} (13... Rf7 $16) 14. Bc4 $18 {[%emt 0:00:42] a3 is the strong threat.} b5 {[%emt 0:01:03]} 15. Bb3 {[%emt 0:00:20]} (15. Nxb5 $6 Qd7 $16) (15. Bxb5 Nxc3 16. bxc3 Qd5 $11) 15... a5 {[%emt 0:00:40]} 16. h4 {[%emt 0:01:25]} (16. Nxb5 $6 a4 17. Bc4 Ra6 $14) 16... a4 {[%emt 0:00:18]} (16... Rf7 $142 17. h5 (17. Nxb5 a4 $11) 17... Ra6) 17. Bxd5+ {[%emt 0:00:27]} Nxd5 {[%emt 0:00:03]} 18. Ne4 {[%emt 0:00:19]} (18. Nxb5 Qe8 19. Nc3 Nxc3 20. bxc3 Rb8 $19) ({Better is} 18. h5 $18 Nxc3 19. bxc3 (19. hxg6 $2 Nxa2+ 20. Kd2 Qxd4+ 21. Ke1 Qxe5+ 22. Ne2 Qg7 $19)) 18... Qe8 {[%emt 0:02:30]} (18... Rf7 $16 {was called for.} 19. h5 gxh5) 19. Ng5 {[%emt 0:02:20][%csl Gg5][%cal Rh6h7] Pair of Knights!} Rf7 {[%emt 0:00:03]} 20. Nxf7 {[%emt 0:00:30]} Qxf7 {[%emt 0:00:00]} 21. Qd2 {[%emt 0:00:37] [#] Against Nb4} (21. h5 $18) 21... Ra6 $17 {[%emt 0:01:38][%cal Ba8a6,Ba6c6,Bc6c2,Bc2d2][%mdl 1056] Black has strong compensation.} 22. Kb1 {[%emt 0:01:55]} (22. Qg5 $17 {is a better defense.}) 22... Bf5+ $19 {[%emt 0:00:22]} 23. Ka1 {[%emt 0:00:03] [#]} Rc6 {[%emt 0:00:00]} 24. Nh3 {[%emt 0:02:08] And now Ng5 would win.} Rc2 {[%emt 0:00:22]} 25. Ng5 {[%emt 0:01:30]} Rxd2 $40 {[%emt 0:00:31][%mdl 128] Black attacks with force.} 26. Nxf7 {[%emt 0:00:01]} Rxd1+ {[%emt 0:00:00]} 27. Rxd1 {[%emt 0:00:01] Hoping for Nh6+.} Kxf7 {[%emt 0:00:01]} 28. Rc1 {[%emt 0:00:01]} (28. g4 $142 Be6 29. b3) 28... Bd7 {[%emt 0:02:48]} 29. Rc5 {[%emt 0:00:50]} c6 {[%emt 0:00:02]} 30. Kb1 {[%emt 0:00:03]} Nf4 {[%emt 0:00:21]} 31. Kc2 {[%emt 0:00:24]} Nxg2 {[%emt 0:00:18] Weighted Error Value: White=0.52/Black=0.23 (precise)} 0-1

[Event "MCCT Chessable Masters 2022"]
[Site "Online"]
[Date "2022.05.16"]
[Round "13.7"]
[White "Vidit, Santosh Gujrathi"]
[Black "Tari, Aryan"]
[Result "0-1"]
[ECO "B12"]
[WhiteElo "2723"]
[BlackElo "2654"]
[Annotator "TA"]
[PlyCount "68"]
[EventDate "2022.05.19"]
[EventType "tourn"]
[EventCountry "NET"]
[SourceTitle "playchess.com"]
[Source "ChessBase"]
[SourceQuality "1"]
[TimeControl "900+10"]

{[%evp 9,68,7,31,20,18,16,18,16,20,0,15,10,10,12,41,36,70,13,17,13,16,21,19,0,10,0,15,-26,-23,-9,6,-18,0,-71,-67,-189,-187,-371,-371,-817,-829,-818,-805,-721,-786,-995,-985,-1054,-1053,-1050,-1045,-1309,-1272,-1248,-933,-1162,-1133,-29992,-29993,-29993,-29994]} 1. e4 {[%emt 0:00:00]} c6 {[%emt 0:00:00]} 2. d4 {[%emt 0:00:03]} d5 {[%emt 0:00:02]} 3. e5 {[%emt 0:00:00]} Bf5 {[%emt 0:00:01]} 4. h4 {[%emt 0:00:03]} a6 {[%emt 0:00:02]} 5. g4 {[%emt 0:00:26]} Bd7 {[%emt 0:00:05][%cal Oc6c5]} 6. Nc3 {[%emt 0:00:57] B12: Caro-Kann: Advance Variation.} (6. c4 $5 {[%cal Rb1c3]}) 6... e6 {[%emt 0:00:11][%cal Oh7h5]} 7. Be3 {[%emt 0:00:13]} c5 {[%emt 0:02:04]} 8. dxc5 {[%emt 0:00:03] The position is equal.} Qc7 {[%emt 0:00:43]} 9. Nf3 {[%emt 0:01:07]} Bxc5 {[%emt 0:00:07]} 10. Bxc5 {[%emt 0:00:40]} Qxc5 {[%emt 0:00:00]} 11. Qd2 {[%emt 0:00:02] [#]} b5 $5 $146 {[%emt 0:02:18][%mdl 8] New and interesting.} ({Predecessor:} 11... Nc6 12. O-O-O O-O-O 13. Bd3 Nge7 14. Rde1 h5 15. gxh5 Rxh5 16. Ng5 Be8 17. f4 Kb8 {½-½ (35) Popov,I (2596)-Evdokimov,A (2495) Sochi 2016}) 12. Bd3 {[%emt 0:02:04]} Ne7 {[%emt 0:00:13]} 13. O-O-O {[%emt 0:00:43]} (13. Qg5 $14) 13... b4 $11 {[%emt 0:01:08]} 14. Ne2 {[%emt 0:00:06]} Bb5 {[%emt 0:01:19]} 15. Kb1 {[%emt 0:00:57]} Nbc6 {[%emt 0:00:42]} 16. Nf4 {[%emt 0:00:37]} h6 {[%emt 0:01:13]} 17. Rc1 {[%emt 0:01:33]} Qb6 {[%emt 0:01:23]} 18. c4 {[%emt 0:02:33]} dxc4 {[%emt 0:01:07]} 19. Bxc4 {[%emt 0:00:00]} Rd8 {[%emt 0:00:32]} 20. Qe2 {[%emt 0:00:09]} O-O {[%emt 0:01:06]} 21. Qe4 {[%emt 0:01:54]} (21. Qe3 $1 $11 {keeps the balance.} Qxe3 22. fxe3) 21... Nd4 {[%emt 0:00:49] Hoping for ...Bc6.} 22. Ng5 {[%emt 0:00:47] [#] Loses the game.} g6 $1 $19 {[%emt 0:01:05]} 23. Bxb5 $2 {[%emt 0:00:30]} (23. h5 Bc6 24. Qe3 hxg5 25. hxg6 Nxg6 {[#]} 26. Nh5 $1 Bxh1 27. Rxh1) 23... Nxb5 {[%emt 0:00:29]} ({Don't blunder} 23... hxg5 $2 24. hxg5 Nxb5 25. Qf3 Nc3+ 26. Ka1 $19) 24. Nh5 $2 {[%emt 0:02:12]} (24. Ka1 hxg5 25. hxg5) 24... Nc3+ {[%emt 0:00:42]} 25. Rxc3 {[%emt 0:00:16]} bxc3 {[%emt 0:00:00][%csl Gc3][%cal Rb6b2]} 26. Nf6+ {[%emt 0:00:05]} Kg7 {[%emt 0:00:15][%csl Gc3][%cal Rb6b2]} 27. Qc2 {[%emt 0:00:54]} hxg5 {[%emt 0:00:41]} 28. Qxc3 {[%emt 0:00:02]} Qxf2 {[%emt 0:00:33]} 29. h5 {[%emt 0:00:33]} Nd5 {[%emt 0:00:09]} 30. Nxd5 {[%emt 0:00:24]} Rxd5 {[%emt 0:00:06]} 31. hxg6 {[%emt 0:00:01]} Qd2 {[%emt 0:00:19]} 32. Qc7 {[%emt 0:00:22]} Qd3+ {[%emt 0:00:03]} 33. Kc1 {[%emt 0:00:00]} Qe3+ {[%emt 0:00:01]} 34. Kb1 {[%emt 0:00:03]} Qe4+ {[%emt 0:00:01] Weighted Error Value: White=0.85/Black=0.17 (very precise)} 0-1

[Event "MCCT Chessable Masters 2022"]
[Site "Online"]
[Date "2022.05.16"]
[Round "13.8"]
[White "Wei, Yi"]
[Black "Giri, Anish"]
[Result "0-1"]
[ECO "B90"]
[WhiteElo "2727"]
[BlackElo "2761"]
[Annotator "TA"]
[PlyCount "62"]
[EventDate "2022.05.19"]
[EventType "tourn"]
[EventCountry "NET"]
[SourceTitle "playchess.com"]
[Source "ChessBase"]
[SourceQuality "1"]
[TimeControl "900+10"]

{[%evp 13,62,14,27,0,0,-10,0,0,0,0,0,0,5,7,8,0,0,0,60,23,9,22,7,24,20,0,22,0,4,0,16,29,58,59,68,5,14,0,0,0,0,0,0,0,0,0,0,-1047,-1032,-29974,-29975]} 1. e4 {[%emt 0:00:00] Marin,M} c5 {[%emt 0:00:00]} 2. Nf3 {[%emt 0:00:02]} d6 {[%emt 0:00:02]} 3. d4 {[%emt 0:00:01]} cxd4 {[%emt 0:00:01]} 4. Nxd4 {[%emt 0:00:01]} Nf6 {[%emt 0:00:00]} 5. Nc3 {[%emt 0:00:01]} a6 {[%emt 0:00:01]} 6. Be3 {[%emt 0:00:02]} e5 {[%emt 0:00:10]} 7. Nb3 {[%emt 0:00:01]} Be7 {[%emt 0:00:01]} 8. h3 {[%emt 0:00:06] B90: Sicilian Najdorf: Unusual White 6th moves, 6 Be3 Ng4 and 6 Be3 e5.} (8. f3 Be6 9. Qd2 h5 10. O-O-O Nbd7 11. Kb1 Rc8 12. h4 b5 13. a3 O-O 14. Bg5 Re8 15. g4 hxg4 16. fxg4 Bxg4 17. Re1 d5 18. Nxd5 Nxd5 19. exd5 Bf5 {½-½ (31) Wei,Y (2732)-Giri,A (2764) Chess.com INT 2020}) 8... Be6 {[%emt 0:00:09]} 9. Qd2 {[%emt 0:00:03]} Nbd7 {[%emt 0:01:53]} 10. O-O-O {[%emt 0:00:05] The position is equal.} b5 {[%emt 0:01:15]} 11. g4 {[%emt 0:00:07]} O-O {[%emt 0:02:40] [#]} 12. a3 $146 {[%emt 0:00:03]} ({Predecessor:} 12. Kb1 Qc7 13. Bg2 Nb6 14. Bxb6 Qxb6 15. f4 Bc4 16. g5 Nh5 17. fxe5 dxe5 18. Nd5 Bxd5 19. exd5 {½-½ (32) Anand,V (2779)-Ivanchuk,V (2750) Morelia/Linares 2007 CBM 117 [Marin,M]}) 12... Nb6 {[%emt 0:02:38]} 13. g5 {[%emt 0:00:12]} Nfd7 {[%emt 0:01:31]} 14. Na5 {[%emt 0:00:01]} Qc7 {[%emt 0:00:08] Inhibits Nc6.} 15. Kb1 {[%emt 0:00:10]} Rab8 {[%emt 0:01:02]} (15... Rfc8 $11) 16. Nd5 {[%emt 0:05:07]} Nxd5 {[%emt 0:00:20]} 17. exd5 {[%emt 0:00:02]} Bxd5 {[%emt 0:00:01]} 18. Qxd5 {[%emt 0:00:01] aiming for Nc6.} Qxa5 {[%emt 0:00:00]} 19. Bd3 {[%emt 0:00:44]} Qc7 {[%emt 0:01:16]} 20. Qe4 {[%emt 0:01:09][%csl Gd3][%cal Re4h7]} g6 $132 {[%emt 0:00:49][%mdl 2048] Black is not keeping still} 21. h4 {[%emt 0:00:07]} Nc5 {[%emt 0:00:22]} 22. Bxc5 {[%emt 0:00:56]} d5 {[%emt 0:00:51] [#]} (22... Qxc5 23. h5 Kg7 24. hxg6 hxg6 25. Rh7+ $3 {[%mdl 512]} (25. Qh4 Rh8 $17) 25... Kg8 26. Rdh1 Bxg5 27. Rh8+ Kg7 28. R1h7+ Kf6 29. Rxf7+ $3 {[%mdl 512]} Rxf7 30. Qxg6+ Ke7 31. Qxg5+ Ke6 32. Qg6+ Ke7 33. Qg5+ Kd7 34. Rxb8 $18) 23. Qxd5 {[%emt 0:04:32]} Qxc5 {[%emt 0:00:02]} 24. Qb3 {[%emt 0:02:15]} (24. Qe4 $14) 24... a5 {[%emt 0:00:34][%cal Ba6a5,Ba5a4][%mdl 32]} (24... Qxf2 $2 25. h5 Qb6 26. Be4 $18) 25. Be4 {[%emt 0:00:01]} a4 {[%emt 0:00:11]} 26. Qh3 {[%emt 0:00:20] Strongly threatening h5.} b4 {[%emt 0:01:48][%cal Rb4a3]} 27. h5 {[%emt 0:00:01][%cal Bh4h5,Bh5g6][%mdl 32] White wants to mate with hxg6.} bxa3 {[%emt 0:00:10]} 28. hxg6 {[%emt 0:00:07][%csl Ge4,Gg6,Gh1][%cal Rh3h7]} Rxb2+ {[%emt 0:00:11]} 29. Ka1 {[%emt 0:00:02][%csl Ge4,Gg6,Gh1][%cal Rh3h7]} h5 {[%emt 0:00:07] Really sharp!} 30. gxh6 $2 {[%emt 0:02:43][%mdl 8192] [#]} (30. Qxh5 Ra2+ $3 {[%mdl 512]} 31. Kxa2 Qc4+ 32. Kb1 a2+ 33. Kc1 a1=Q+ 34. Kd2 Qac3+ 35. Kc1 Ba3+ 36. Kb1 Qb2#) (30. gxf7+ $11 Rxf7 31. g6 (31. Qxh5 Rb1+ 32. Rxb1 Qd4+ 33. Ka2 Qc4+ 34. Ka1 Qd4+ 35. Ka2 Qc4+ 36. Ka1 Qd4+ $11) 31... Rxf2 32. Qe6+ (32. Qxh5 Ra2+ 33. Kxa2 Rxc2+ 34. Kb1 a2+ 35. Ka1 Qc3#) 32... Kg7 33. Rd7 (33. Rxh5 Rb1+ 34. Rxb1 Qc3+ 35. Ka2 Rxc2+ 36. Bxc2 Qxc2+ 37. Ka1 Qc3+ 38. Ka2 Qc2+ 39. Ka1 Qc3+ 40. Ka2 Qc2+ $11) 33... Rb1+ 34. Rxb1 Qc3+ 35. Ka2 Rxc2+ 36. Bxc2 Qxc2+ 37. Ka1 Qc3+ 38. Ka2 Qc2+ 39. Ka1 Qc3+ 40. Ka2 Qc2+) 30... fxg6 $1 $19 {[%emt 0:00:02] ( -> ...Qb4)} (30... Qc4 {is a self mate.} 31. h7+ Kh8 32. g7+ Kxg7 33. h8=Q+ Rxh8 34. Qxh8#) 31. Qg3 {[%emt 0:01:18] [#]} Kh8 $1 {[%emt 0:00:17] Weighted Error Value: White=0.57/Black=0.09 (flawless)} 0-1

[Event "MCCT Chessable Masters 2022"]
[Site "Online"]
[Date "2022.05.16"]
[Round "14.1"]
[White "Carlsen, Magnus"]
[Black "Giri, Anish"]
[Result "1/2-1/2"]
[ECO "D78"]
[WhiteElo "2864"]
[BlackElo "2761"]
[Annotator "TA"]
[PlyCount "75"]
[EventDate "2022.05.19"]
[EventType "tourn"]
[EventCountry "NET"]
[SourceTitle "playchess.com"]
[Source "ChessBase"]
[SourceQuality "1"]
[TimeControl "900+10"]

{[%evp 17,75,26,24,15,8,0,0,0,0,0,0,0,0,-9,-13,-56,-57,-74,-33,-33,-33,-33,-33,-34,-25,-25,0,-1,0,-10,-3,-11,-14,-22,-14,-14,0,0,0,0,0,-3,0,0,0,0,0,0,0,-11,0,0,0,-14,0,-6,0,-21,0,-10]} 1. d4 {[%emt 0:00:00]} Nf6 {[%emt 0:00:00]} 2. c4 {[%emt 0:00:03]} g6 {[%emt 0:00:01]} 3. g3 {[%emt 0:00:20]} c6 {[%emt 0:00:02]} 4. Bg2 {[%emt 0:00:03]} d5 {[%emt 0:00:00]} 5. Qb3 {[%emt 0:00:19]} Bg7 {[%emt 0:01:14]} 6. Nc3 {[%emt 0:00:02]} dxc4 {[%emt 0:00:11]} 7. Qxc4 {[%emt 0:00:01]} O-O {[%emt 0:00:36]} 8. Nf3 {[%emt 0:00:02]} Bf5 {[%emt 0:00:02]} 9. O-O {[%emt 0:00:02]} Nbd7 {[%emt 0:00:02]} 10. Qb3 {[%emt 0:01:04] D78: Fianchetto Grünfeld: 6 0-0 c6.} Qb6 {[%emt 0:00:10]} 11. Bf4 {[%emt 0:00:02]} Qxb3 {[%emt 0:02:50]} 12. axb3 {[%emt 0:00:02] [#]} h6 $146 {[%emt 0:00:42]} ({Predecessor:} 12... a6 13. Rfc1 h6 14. h3 g5 15. Bd2 Rfd8 16. Be1 Rac8 17. Na4 Ne4 18. Ba5 Re8 {½-½ (54) Ivanisevic,I (2653)-Vidit,S (2651) Berlin 2015}) 13. h4 {[%emt 0:00:09]} Rfd8 {[%emt 0:00:32]} 14. b4 {[%emt 0:00:09]} a6 {[%emt 0:00:07]} 15. Rfc1 {[%emt 0:00:37]} Rac8 {[%emt 0:00:11]} 16. Ra5 {[%emt 0:00:13]} Nb6 {[%emt 0:00:12]} 17. Raa1 {[%emt 0:00:45]} Nfd5 {[%emt 0:00:58]} 18. Nxd5 {[%emt 0:00:02]} Nxd5 {[%emt 0:00:10]} 19. Bd2 {[%emt 0:00:01]} Be4 {[%emt 0:00:37]} 20. e3 {[%emt 0:00:01]} Bxf3 {[%emt 0:01:42]} 21. Bxf3 {[%emt 0:00:02]} e5 {[%emt 0:00:01]} 22. dxe5 {[%emt 0:00:24] The position is equal.} Bxe5 {[%emt 0:00:00]} 23. Rc2 {[%emt 0:00:05]} h5 {[%emt 0:00:09]} 24. Ra5 {[%emt 0:01:25]} Bc7 {[%emt 0:00:03]} 25. Rac5 {[%emt 0:00:41] [#] aiming for Bxd5.} Bd6 {[%emt 0:00:18]} 26. R5c4 {[%emt 0:00:03] And now Bxd5 would win.} Nb6 {[%emt 0:00:40]} 27. Rd4 {[%emt 0:00:11]} Be5 {[%emt 0:00:05]} 28. Rxd8+ {[%emt 0:00:01]} Rxd8 {[%emt 0:00:00]} 29. Kf1 {[%emt 0:00:04]} Nc4 {[%emt 0:01:42]} 30. Bc1 {[%emt 0:00:03]} Nd6 {[%emt 0:00:01]} 31. Ke2 {[%emt 0:00:15]} f5 {[%emt 0:00:09]} 32. Bd2 {[%emt 0:00:07]} Kf7 {[%emt 0:00:12]} 33. Be1 {[%emt 0:00:08]} Nb5 {[%emt 0:00:14]} 34. Bg2 {[%emt 0:00:03]} Bf6 {[%emt 0:00:15]} 35. Bd2 {[%emt 0:00:12]} Be5 {[%emt 0:00:10]} 36. Be1 {[%emt 0:00:01]} Bf6 {[%emt 0:00:01]} 37. Bd2 {[%emt 0:00:01]} Be5 {[%emt 0:00:00]} 38. Be1 {[%emt 0:00:00] Weighted Error Value: White=0.05 (flawless) /Black=0.06 (flawless)} 1/2-1/2